[Event "GER-ch Blitz 2019"]
[Site "Magdeburg"]
[Date "2019.05.25"]
[Round "22.6"]
[White "Frischmann, Rick"]
[Black "Braeuning, Rudolf Wilhelm"]
[Result "1-0"]
[ECO "B27"]
[WhiteElo "2320"]
[BlackElo "2285"]
[Annotator "NA"]
[PlyCount "59"]
[EventDate "2019.05.25"]
[EventType "tourn"]
[EventCountry "GER"]
[Tiebreak "Number of wins+Number of black wins"]
[SourceTitle "playchess.com"]
[Source "ChessBase"]
[SourceQuality "1"]
[TimeControl "180+2"]

1. e4 {[%emt 0:00:00]} c5 {[%emt 0:00:00]} 2. Nf3 {[%emt 0:00:01]} g6 {[%emt 0:
00:00]} 3. d4 {[%emt 0:00:01]} cxd4 4. c3 d5 {[%emt 0:00:08]} 5. Qxd4 {[%emt 0:
00:18]} Nf6 {[%emt 0:00:06]} 6. e5 {[%emt 0:00:09]} Nc6 {[%emt 0:00:02]} 7. Bb5
{[%emt 0:00:02]} Ne4 {[%emt 0:00:19]} 8. O-O {[%emt 0:00:34]} Bg7 {[%emt 0:00:
05]} 9. c4 {[%emt 0:00:05]} e6 {[%emt 0:00:40]} 10. Nc3 {[%emt 0:00:31]} Nxc3 {
[%emt 0:00:04]} 11. bxc3 {[%emt 0:00:02]} O-O {[%emt 0:00:03]} 12. Bxc6 {
[%emt 0:00:02]} bxc6 {[%emt 0:00:01]} 13. Bg5 {[%emt 0:00:04]} Qa5 {[%emt 0:00:
08]} 14. Qh4 {[%emt 0:00:04]} Qxc3 {[%emt 0:00:17]} 15. Rac1 {[%emt 0:00:01]}
Qd3 {[%emt 0:00:04]} 16. Bh6 {[%emt 0:00:20]} f6 {[%emt 0:00:40]} 17. Bxg7 {
[%emt 0:00:06]} Kxg7 {[%emt 0:00:01]} 18. exf6+ {[%emt 0:00:11]} Rxf6 {[%emt 0:
00:01]} 19. Ne5 {[%emt 0:00:46]} Qf5 {[%emt 0:00:04]} 20. Nxc6 {[%emt 0:00:09]}
Bd7 {[%emt 0:00:05]} 21. cxd5 {[%emt 0:00:03]} exd5 {[%emt 0:00:02]} 22. Nd4 {
[%emt 0:00:01]} Qe5 {[%emt 0:00:12]} 23. Rfd1 {[%emt 0:00:03]} Raf8 {[%emt 0:
00:04]} 24. Nf3 {[%emt 0:00:02]} Rxf3 {[%emt 0:00:09]} 25. gxf3 {[%emt 0:00:00]
} Rxf3 {[%emt 0:00:10]} 26. Re1 {[%emt 0:00:01]} Qf6 {[%emt 0:00:22]} 27. Re7+
{[%emt 0:00:01]} Kf8 {[%emt 0:00:01]} 28. Qxf6+ Rxf6 {[%emt 0:00:02]} 29. Rxd7
{[%emt 0:00:02]} Ke8 {[%emt 0:00:01]} 30. Rxa7 {[%emt 0:00:01]} 1-0

[Event "GER-ch Blitz 2019"]
[Site "Magdeburg"]
[Date "2019.05.25"]
[Round "22.7"]
[White "Voege, Tobias"]
[Black "Zuyev, Igor"]
[Result "1/2-1/2"]
[ECO "E21"]
[WhiteElo "2294"]
[BlackElo "2447"]
[Annotator "NA"]
[PlyCount "106"]
[EventDate "2019.05.25"]
[EventType "tourn"]
[EventCountry "GER"]
[Tiebreak "Number of wins+Number of black wins"]
[SourceTitle "playchess.com"]
[Source "ChessBase"]
[SourceQuality "1"]
[TimeControl "180+2"]

1. d4 {[%emt 0:00:00]} Nf6 {[%emt 0:00:00]} 2. c4 {[%emt 0:00:00]} e6 {[%emt 0:
00:00]} 3. Nc3 {[%emt 0:00:01]} Bb4 {[%emt 0:00:01]} 4. Nf3 {[%emt 0:00:01]}
Nc6 {[%emt 0:00:11]} 5. Bg5 {[%emt 0:00:08]} d5 {[%emt 0:00:06]} 6. e3 {
[%emt 0:00:04]} h6 {[%emt 0:00:05]} 7. Bh4 {[%emt 0:00:01]} g5 {[%emt 0:00:08]}
8. Bg3 {[%emt 0:00:02]} Ne4 {[%emt 0:00:05]} 9. Qc2 {[%emt 0:00:05]} h5 {
[%emt 0:00:05]} 10. h4 {[%emt 0:00:11]} Nxg3 {[%emt 0:00:06]} 11. fxg3 {
[%emt 0:00:01]} gxh4 {[%emt 0:00:03]} 12. gxh4 {[%emt 0:00:21]} Qd6 {[%emt 0:
00:05]} 13. O-O-O {[%emt 0:00:13]} Bxc3 {[%emt 0:00:05]} 14. bxc3 {[%emt 0:00:
12]} Bd7 {[%emt 0:00:06]} 15. c5 {[%emt 0:00:42]} Qf8 {[%emt 0:00:05]} 16. c4 {
[%emt 0:00:13]} Qh6 {[%emt 0:00:07]} 17. Qd2 {[%emt 0:00:41]} O-O-O {[%emt 0:
00:09]} 18. Ng5 {[%emt 0:00:18]} Qg7 {[%emt 0:00:06]} 19. cxd5 {[%emt 0:00:06]}
exd5 {[%emt 0:00:05]} 20. Bd3 {[%emt 0:00:01]} Rde8 {[%emt 0:00:06]} 21. Rde1 {
[%emt 0:00:03]} f6 {[%emt 0:00:07]} 22. Nh3 {[%emt 0:00:01]} Bxh3 {[%emt 0:00:
10]} 23. Rxh3 {[%emt 0:00:01]} Rhg8 {[%emt 0:00:05]} 24. Re2 {[%emt 0:00:05]}
Qh6 {[%emt 0:00:08]} 25. Rf3 {[%emt 0:00:01]} Kb8 {[%emt 0:00:08]} 26. Ref2 {
[%emt 0:00:02]} Re6 {[%emt 0:00:07]} 27. Bf5 {[%emt 0:00:01]} Re7 {[%emt 0:00:
06]} 28. Bh3 {[%emt 0:00:02]} a6 {[%emt 0:00:07]} 29. Rxf6 {[%emt 0:00:02]}
Qxe3 {[%emt 0:00:05]} 30. Rf8+ {[%emt 0:00:02]} Rxf8 {[%emt 0:00:06]} 31. Rxf8+
{[%emt 0:00:01]} Ka7 {[%emt 0:00:02]} 32. Qxe3 {[%emt 0:00:03]} Rxe3 {[%emt 0:
00:02]} 33. Rh8 {[%emt 0:00:05]} Re1+ {[%emt 0:00:05]} 34. Kd2 {[%emt 0:00:02]}
Re4 {[%emt 0:00:05]} 35. Rxh5 {[%emt 0:00:02]} Rxd4+ {[%emt 0:00:05]} 36. Ke3 {
[%emt 0:00:02]} Re4+ {[%emt 0:00:05]} 37. Kd2 {[%emt 0:00:01]} Ra4 {[%emt 0:00:
05]} 38. Rxd5 {[%emt 0:00:03]} Rxh4 {[%emt 0:00:06]} 39. Rd7 {[%emt 0:00:02]}
Rh5 {[%emt 0:00:06]} 40. Rxc7 {[%emt 0:00:02]} Rxc5 {[%emt 0:00:06]} 41. Rh7 {
[%emt 0:00:03]} Ra5 {[%emt 0:00:03]} 42. Bc8 {[%emt 0:00:02]} Rxa2+ {[%emt 0:
00:06]} 43. Kc3 {[%emt 0:00:01]} Na5 {[%emt 0:00:06]} 44. g4 {[%emt 0:00:02]}
Re2 {[%emt 0:00:09]} 45. g5 {[%emt 0:00:04]} Rg2 {[%emt 0:00:06]} 46. Rg7 {
[%emt 0:00:02]} Kb6 {[%emt 0:00:07]} 47. Bf5 {[%emt 0:00:03]} Kc5 {[%emt 0:00:
05]} 48. g6 {[%emt 0:00:02]} Rg3+ {[%emt 0:00:08]} 49. Kd2 {[%emt 0:00:01]} Rg5
{[%emt 0:00:02]} 50. Bd3 {[%emt 0:00:01]} b5 {[%emt 0:00:02]} 51. Ra7 {[%emt 0:
00:03]} Nc4+ {[%emt 0:00:05]} 52. Bxc4 {[%emt 0:00:03]} Kxc4 {[%emt 0:00:01]}
53. Rxa6 {[%emt 0:00:01]} b4 {[%emt 0:00:02]} 1/2-1/2

[Event "GER-ch Blitz 2019"]
[Site "Magdeburg"]
[Date "2019.05.25"]
[Round "22.8"]
[White "Stein, Robert"]
[Black "Feuerstack, Aljoscha"]
[Result "0-1"]
[ECO "A56"]
[WhiteElo "2318"]
[BlackElo "2441"]
[Annotator "NA"]
[PlyCount "134"]
[EventDate "2019.05.25"]
[EventType "tourn"]
[EventCountry "GER"]
[Tiebreak "Number of wins+Number of black wins"]
[SourceTitle "playchess.com"]
[Source "ChessBase"]
[SourceQuality "1"]
[TimeControl "180+2"]

1. d4 {[%emt 0:00:00]} Nf6 {[%emt 0:00:00]} 2. c4 {[%emt 0:00:01]} c5 {[%emt 0:
00:00]} 3. Nf3 {[%emt 0:00:04]} cxd4 {[%emt 0:00:01]} 4. Nxd4 {[%emt 0:00:00]}
e5 {[%emt 0:00:02]} 5. Nb5 {[%emt 0:00:01]} d5 {[%emt 0:00:03]} 6. cxd5 {
[%emt 0:00:01]} Bc5 {[%emt 0:00:01]} 7. N5c3 {[%emt 0:00:00]} O-O {[%emt 0:00:
02]} 8. g3 {[%emt 0:00:01]} e4 {[%emt 0:00:06]} 9. Bg2 {[%emt 0:00:09]} Qe7 {
[%emt 0:00:03]} 10. O-O {[%emt 0:00:05]} Bf5 {[%emt 0:00:06]} 11. Bg5 {[%emt 0:
00:07]} Nbd7 {[%emt 0:00:05]} 12. e3 {[%emt 0:00:19]} h6 {[%emt 0:00:20]} 13.
Bxf6 {[%emt 0:00:01]} Nxf6 {[%emt 0:00:01]} 14. Nd2 {[%emt 0:00:02]} Rad8 {
[%emt 0:00:08]} 15. Qb3 {[%emt 0:00:02]} Rfe8 {[%emt 0:00:12]} 16. Rad1 {
[%emt 0:00:19]} a6 {[%emt 0:00:08]} 17. a4 {[%emt 0:00:01]} Qd7 {[%emt 0:00:22]
} 18. Nc4 {[%emt 0:00:04]} Bh3 {[%emt 0:00:13]} 19. Rd2 {[%emt 0:00:11]} Qf5 {
[%emt 0:00:38]} 20. a5 {[%emt 0:00:53]} Qh5 {[%emt 0:00:11]} 21. Ne2 {[%emt 0:
00:18]} Bxg2 {[%emt 0:00:35]} 22. Kxg2 {[%emt 0:00:01]} Rxd5 {[%emt 0:00:10]}
23. Nf4 {[%emt 0:00:08]} Qf3+ {[%emt 0:00:01]} 24. Kg1 {[%emt 0:00:01]} Rg5 {
[%emt 0:00:05]} 25. Qd1 {[%emt 0:00:10]} Bb4 {[%emt 0:00:01]} 26. Rd4 {[%emt 0:
00:22]} Bxa5 {[%emt 0:00:01]} 27. Nd6 {[%emt 0:00:09]} Re7 {[%emt 0:00:04]} 28.
Qxf3 {[%emt 0:00:06]} exf3 {[%emt 0:00:02]} 29. Rc1 {[%emt 0:00:01]} Bb6 {
[%emt 0:00:04]} 30. Nc8 {[%emt 0:00:03]} Bxd4 {[%emt 0:00:02]} 31. Nxe7+ {
[%emt 0:00:01]} Kf8 32. Neg6+ {[%emt 0:00:03]} Ke8 {[%emt 0:00:07]} 33. h4 {
[%emt 0:00:13]} Rb5 {[%emt 0:00:01]} 34. exd4 {[%emt 0:00:01]} fxg6 {[%emt 0:
00:02]} 35. Rc2 {[%emt 0:00:02]} g5 {[%emt 0:00:01]} 36. hxg5 {[%emt 0:00:01]}
hxg5 {[%emt 0:00:00]} 37. Nd3 {[%emt 0:00:01]} g4 {[%emt 0:00:01]} 38. Kf1 {
[%emt 0:00:03]} Nd5 {[%emt 0:00:03]} 39. Ke1 {[%emt 0:00:05]} Rb3 {[%emt 0:00:
01]} 40. Nc5 {[%emt 0:00:05]} Rb4 {[%emt 0:00:02]} 41. Rd2 {[%emt 0:00:03]} b6
42. Ne6 {[%emt 0:00:01]} Rc4 {[%emt 0:00:03]} 43. Ng5 {[%emt 0:00:03]} Nb4 {
[%emt 0:00:02]} 44. Kd1 {[%emt 0:00:00]} a5 45. Ne4 {[%emt 0:00:01]} Rc6 {
[%emt 0:00:02]} 46. d5 {[%emt 0:00:02]} Rh6 {[%emt 0:00:01]} 47. Rd4 {[%emt 0:
00:02]} Kd7 48. Kd2 {[%emt 0:00:01]} Rh1 {[%emt 0:00:04]} 49. Nc3 {[%emt 0:00:
00]} Na6 {[%emt 0:00:04]} 50. Rxg4 {[%emt 0:00:01]} Kd6 {[%emt 0:00:01]} 51.
Rg6+ {[%emt 0:00:01]} Ke5 {[%emt 0:00:01]} 52. Rxb6 {[%emt 0:00:03]} Nc5 {
[%emt 0:00:01]} 53. Rb5 {[%emt 0:00:02]} Kd4 {[%emt 0:00:02]} 54. d6 {[%emt 0:
00:02]} Rh2 {[%emt 0:00:11]} 55. Rxc5 {[%emt 0:00:10]} Kxc5 {[%emt 0:00:02]}
56. d7 {[%emt 0:00:02]} Rh8 {[%emt 0:00:00]} 57. Ke3 {[%emt 0:00:00]} Rd8 {
[%emt 0:00:02]} 58. Kxf3 {[%emt 0:00:01]} Rxd7 {[%emt 0:00:00]} 59. Ke2 {
[%emt 0:00:01]} Rb7 {[%emt 0:00:01]} 60. Nd1 {[%emt 0:00:01]} Kd4 {[%emt 0:00:
01]} 61. Kd2 {[%emt 0:00:01]} g5 {[%emt 0:00:02]} 62. f3 {[%emt 0:00:01]} Rb3 {
[%emt 0:00:02]} 63. Ke2 {[%emt 0:00:02]} a4 {[%emt 0:00:01]} 64. Kf2 {[%emt 0:
00:05]} Kd3 {[%emt 0:00:01]} 65. f4 {[%emt 0:00:04]} Kc2 {[%emt 0:00:05]} 66.
f5 {[%emt 0:00:04]} Kxd1 {[%emt 0:00:02]} 67. f6 {[%emt 0:00:01]} Rb6 {[%emt 0:
00:01]} 0-1

[Event "GER-ch Blitz 2019"]
[Site "Magdeburg"]
[Date "2019.05.25"]
[Round "22.9"]
[White "Wichmann, Cliff"]
[Black "Schmaltz, Roland"]
[Result "0-1"]
[ECO "E92"]
[WhiteElo "2280"]
[BlackElo "2461"]
[Annotator "ChessBase"]
[PlyCount "76"]
[EventDate "2019.05.25"]
[EventType "tourn"]
[EventCountry "GER"]
[Tiebreak "Number of wins+Number of black wins"]
[SourceTitle "playchess.com"]
[Source "ChessBase"]
[SourceQuality "1"]
[TimeControl "180+2"]

1. d4 {[%emt 0:00:00]} Nf6 {[%emt 0:00:00]} 2. c4 {[%emt 0:00:00]} g6 {[%emt 0:
00:00]} 3. Nc3 {[%emt 0:00:01]} Bg7 {[%emt 0:00:00]} 4. e4 {[%emt 0:00:01]} d6
{[%emt 0:00:00]} 5. Nf3 {[%emt 0:00:01]} O-O {[%emt 0:00:02]} 6. Be2 {[%emt 0:
00:01]} e5 {[%emt 0:00:00]} 7. Be3 {[%emt 0:00:02]} Na6 {[%emt 0:00:01]} 8. O-O
{[%emt 0:00:03]} c6 {[%emt 0:00:01]} 9. d5 {[%emt 0:00:02]} Ng4 {[%emt 0:00:02]
} 10. Bg5 {[%emt 0:00:04]} f6 {[%emt 0:00:01]} 11. Bh4 {[%emt 0:00:02]} c5 {
[%emt 0:00:03]} 12. Nd2 {[%emt 0:00:03]} Nh6 {[%emt 0:00:02]} 13. f3 {[%emt 0:
00:04]} Nf7 {[%emt 0:00:01]} 14. a3 {[%emt 0:00:10]} Bh6 {[%emt 0:00:07]} 15.
Rb1 {[%emt 0:00:11]} Be3+ {[%emt 0:00:07]} 16. Kh1 {[%emt 0:00:02]} Bd7 {
[%emt 0:00:08]} 17. Qc2 {[%emt 0:00:09]} Bg5 {[%emt 0:00:16]} 18. Bf2 {[%emt 0:
00:10]} f5 {[%emt 0:00:02]} 19. exf5 {[%emt 0:00:02]} gxf5 {[%emt 0:00:01]} 20.
Bd3 {[%emt 0:00:01]} Qf6 {[%emt 0:00:07]} 21. Bg3 {[%emt 0:00:29]} Qh6 {
[%emt 0:00:04]} 22. Nb3 {[%emt 0:00:15]} Nh8 {[%emt 0:00:10]} 23. Na5 {[%emt 0:
00:05]} b6 {[%emt 0:00:07]} 24. Nc6 {[%emt 0:00:02]} Ng6 {[%emt 0:00:05]} 25.
b4 {[%emt 0:00:09]} Rf7 {[%emt 0:00:10]} 26. Nb5 {[%emt 0:00:05]} Nf4 {[%emt 0:
00:05]} 27. Nbxa7 {[%emt 0:00:16]} Kh8 {[%emt 0:00:03]} 28. bxc5 {[%emt 0:00:
06]} Nxc5 {[%emt 0:00:03]} 29. Be2 {[%emt 0:00:03]} Nh5 {[%emt 0:00:16]} 30.
Be1 {[%emt 0:00:18]} Bf4 {[%emt 0:00:03]} 31. Kg1 {[%emt 0:00:14]} Rg8 {
[%emt 0:00:10]} 32. g3 {[%emt 0:00:06]} Be3+ {[%emt 0:00:11]} 33. Kh1 {[%emt 0:
00:07]} Rxg3 {[%emt 0:00:10]} 34. Bxg3 {[%emt 0:00:05]} Nxg3+ {[%emt 0:00:01]}
35. Kg2 {[%emt 0:00:02]} Rg7 {[%emt 0:00:08]} 36. hxg3 {[%emt 0:00:09]} Rxg3+ {
[%emt 0:00:01]} 37. Kxg3 {[%emt 0:00:01]} f4+ {[%emt 0:00:01]} 38. Kg2 {
[%emt 0:00:03]} Qh3# 0-1

[Event "GER-ch Blitz 2019"]
[Site "Magdeburg"]
[Date "2019.05.25"]
[Round "22.10"]
[White "Kopylov, Daniel"]
[Black "Koch, Thomas"]
[Result "1-0"]
[ECO "B90"]
[WhiteElo "2263"]
[BlackElo "2474"]
[Annotator "ChessBase"]
[PlyCount "147"]
[EventDate "2019.05.25"]
[EventType "tourn"]
[EventCountry "GER"]
[Tiebreak "Number of wins+Number of black wins"]
[SourceTitle "playchess.com"]
[Source "ChessBase"]
[SourceQuality "1"]
[TimeControl "180+2"]

1. e4 {[%emt 0:00:00]} c5 {[%emt 0:00:00]} 2. Nf3 {[%emt 0:00:00]} d6 {[%emt 0:
00:00]} 3. d4 {[%emt 0:00:00]} cxd4 {[%emt 0:00:00]} 4. Nxd4 {[%emt 0:00:01]}
Nf6 {[%emt 0:00:01]} 5. Nc3 {[%emt 0:00:01]} a6 {[%emt 0:00:01]} 6. Be3 {
[%emt 0:00:01]} Ng4 {[%emt 0:00:01]} 7. Bg5 {[%emt 0:00:03]} h6 {[%emt 0:00:01]
} 8. Bc1 {[%emt 0:00:05]} Nc6 {[%emt 0:00:02]} 9. Be2 {[%emt 0:00:06]} Nf6 {
[%emt 0:00:03]} 10. Be3 {[%emt 0:00:08]} e6 {[%emt 0:00:04]} 11. Qd2 {[%emt 0:
00:04]} Qc7 {[%emt 0:00:11]} 12. O-O-O {[%emt 0:00:10]} Bd7 {[%emt 0:00:04]}
13. f4 {[%emt 0:00:15]} O-O-O {[%emt 0:00:04]} 14. Bf3 {[%emt 0:00:27]} Be7 {
[%emt 0:00:17]} 15. Qf2 {[%emt 0:00:07]} Rde8 {[%emt 0:00:39]} 16. Nxc6 {
[%emt 0:00:06]} Bxc6 {[%emt 0:00:03]} 17. Bb6 {[%emt 0:00:02]} Qb8 {[%emt 0:00:
04]} 18. e5 {[%emt 0:00:08]} dxe5 {[%emt 0:00:22]} 19. Bxc6 {[%emt 0:00:09]}
bxc6 {[%emt 0:00:01]} 20. fxe5 {[%emt 0:00:18]} Qxe5 {[%emt 0:00:05]} 21. Rhe1
{[%emt 0:00:18]} Qf5 {[%emt 0:00:09]} 22. Qe2 {[%emt 0:00:13]} Kb7 {[%emt 0:00:
03]} 23. Bf2 {[%emt 0:00:06]} Rd8 {[%emt 0:00:10]} 24. Kb1 {[%emt 0:00:02]}
Rxd1+ {[%emt 0:00:05]} 25. Rxd1 {[%emt 0:00:01]} Rd8 {[%emt 0:00:03]} 26. Rxd8
{[%emt 0:00:33]} Bxd8 {[%emt 0:00:01]} 27. Qe3 {[%emt 0:00:01]} Kc8 {[%emt 0:
00:45]} 28. a4 {[%emt 0:00:08]} Qa5 {[%emt 0:00:04]} 29. Qa7 {[%emt 0:00:06]}
Bc7 {[%emt 0:00:01]} 30. Qa8+ {[%emt 0:00:02]} Kd7 {[%emt 0:00:11]} 31. Qf8 {
[%emt 0:00:02]} Bd6 {[%emt 0:00:12]} 32. Qxf7+ {[%emt 0:00:06]} Be7 {[%emt 0:
00:00]} 33. Qxg7 {[%emt 0:00:04]} Qf5 {[%emt 0:00:03]} 34. Qg3 {[%emt 0:00:03]}
Nd5 {[%emt 0:00:03]} 35. Nxd5 {[%emt 0:00:02]} exd5 {[%emt 0:00:03]} 36. Qf3 {
[%emt 0:00:02]} Qxf3 {[%emt 0:00:05]} 37. gxf3 {[%emt 0:00:01]} Ke6 {[%emt 0:
00:01]} 38. Kc1 {[%emt 0:00:03]} Bg5+ {[%emt 0:00:03]} 39. Kd1 {[%emt 0:00:01]}
Kf5 {[%emt 0:00:02]} 40. Ke2 {[%emt 0:00:01]} Bc1 {[%emt 0:00:03]} 41. b3 {
[%emt 0:00:01]} Bb2 {[%emt 0:00:01]} 42. Be3 {[%emt 0:00:01]} h5 {[%emt 0:00:
01]} 43. Bf2 {[%emt 0:00:02]} Be5 {[%emt 0:00:01]} 44. h3 {[%emt 0:00:01]} Bc3
{[%emt 0:00:01]} 45. Kd3 {[%emt 0:00:01]} Bb2 {[%emt 0:00:02]} 46. Bg3 {
[%emt 0:00:01]} Bf6 {[%emt 0:00:01]} 47. c4 {[%emt 0:00:07]} Ke6 {[%emt 0:00:
05]} 48. Be1 {[%emt 0:00:06]} Be5 {[%emt 0:00:02]} 49. Bd2 {[%emt 0:00:02]} Bf6
{[%emt 0:00:01]} 50. Be3 {[%emt 0:00:02]} Be5 {[%emt 0:00:01]} 51. cxd5+ {
[%emt 0:00:05]} cxd5 {[%emt 0:00:00]} 52. b4 {[%emt 0:00:00]} Kd6 {[%emt 0:00:
06]} 53. b5 {[%emt 0:00:01]} axb5 {[%emt 0:00:01]} 54. axb5 {[%emt 0:00:01]}
Bf6 {[%emt 0:00:01]} 55. Bd4 {[%emt 0:00:02]} Bg5 {[%emt 0:00:02]} 56. Be3 {
[%emt 0:00:02]} Bf6 {[%emt 0:00:00]} 57. f4 {[%emt 0:00:01]} Bd8 {[%emt 0:00:
03]} 58. Bd4 {[%emt 0:00:01]} Ke6 {[%emt 0:00:03]} 59. b6 {[%emt 0:00:03]} Kd7
{[%emt 0:00:02]} 60. f5 {[%emt 0:00:06]} Kc6 {[%emt 0:00:02]} 61. f6 {[%emt 0:
00:00]} Kd6 {[%emt 0:00:02]} 62. Ke3 {[%emt 0:00:03]} Ke6 {[%emt 0:00:02]} 63.
Kf4 {[%emt 0:00:04]} Bxb6 {[%emt 0:00:01]} 64. Bxb6 Kxf6 {[%emt 0:00:01]} 65.
Bd4+ {[%emt 0:00:04]} Kg6 {[%emt 0:00:01]} 66. h4 {[%emt 0:00:01]} Kh6 {
[%emt 0:00:05]} 67. Ke5 {[%emt 0:00:02]} Kg6 {[%emt 0:00:01]} 68. Be3 {[%emt 0:
00:02]} Kf7 {[%emt 0:00:01]} 69. Kxd5 {[%emt 0:00:01]} Kf6 {[%emt 0:00:00]} 70.
Ke4 {[%emt 0:00:02]} Ke6 {[%emt 0:00:01]} 71. Bd4 {[%emt 0:00:02]} Kf7 {
[%emt 0:00:01]} 72. Kf5 Kg8 {[%emt 0:00:01]} 73. Kg6 {[%emt 0:00:02]} Kf8 {
[%emt 0:00:01]} 74. Kxh5 1-0

[Event "GER-ch Blitz 2019"]
[Site "Magdeburg"]
[Date "2019.05.25"]
[Round "22.11"]
[White "Baskin, Robert"]
[Black "Zelbel, Patrick"]
[Result "1-0"]
[ECO "A45"]
[WhiteElo "2398"]
[BlackElo "2439"]
[Annotator "NA"]
[PlyCount "69"]
[EventDate "2019.05.25"]
[EventType "tourn"]
[EventCountry "GER"]
[Tiebreak "Number of wins+Number of black wins"]
[SourceTitle "playchess.com"]
[Source "ChessBase"]
[SourceQuality "1"]
[TimeControl "180+2"]

1. d4 {[%emt 0:00:00]} Nf6 {[%emt 0:00:00]} 2. Bf4 {[%emt 0:00:02]} c5 {
[%emt 0:00:04]} 3. e3 {[%emt 0:00:01]} Qb6 {[%emt 0:00:01]} 4. Nc3 {[%emt 0:00:
01]} cxd4 {[%emt 0:00:02]} 5. exd4 {[%emt 0:00:02]} a6 {[%emt 0:00:01]} 6. Qd2
{[%emt 0:00:02]} d5 {[%emt 0:00:04]} 7. Bd3 {[%emt 0:00:08]} Nc6 {[%emt 0:00:
10]} 8. Nge2 {[%emt 0:00:07]} Nb4 {[%emt 0:00:15]} 9. O-O {[%emt 0:00:07]} e6 {
[%emt 0:00:03]} 10. Rfe1 {[%emt 0:00:14]} Be7 {[%emt 0:00:03]} 11. a4 {[%emt 0:
00:10]} Bd7 {[%emt 0:00:13]} 12. a5 {[%emt 0:00:03]} Qc6 {[%emt 0:00:08]} 13.
Na4 {[%emt 0:00:05]} Nxd3 {[%emt 0:00:37]} 14. cxd3 {[%emt 0:00:13]} O-O {
[%emt 0:00:09]} 15. Nb6 {[%emt 0:00:08]} Rad8 {[%emt 0:00:14]} 16. Rec1 {
[%emt 0:00:29]} Qb5 {[%emt 0:00:00]} 17. Qc2 {[%emt 0:00:36]} Qc6 {[%emt 0:00:
36]} 18. Qd1 {[%emt 0:00:26]} Qb5 {[%emt 0:00:01]} 19. Nc3 {[%emt 0:00:16]} Qb4
{[%emt 0:00:26]} 20. Nxd7 {[%emt 0:00:01]} Rxd7 {[%emt 0:00:01]} 21. Ra4 {
[%emt 0:00:01]} Qxb2 {[%emt 0:00:01]} 22. Bd2 {[%emt 0:00:05]} b5 {[%emt 0:00:
08]} 23. Ra2 {[%emt 0:00:06]} Qb4 {[%emt 0:00:01]} 24. Ne2 {[%emt 0:00:12]} Qd6
{[%emt 0:00:01]} 25. Bf4 {[%emt 0:00:01]} Qb4 {[%emt 0:00:03]} 26. Rb1 {
[%emt 0:00:01]} Rc8 {[%emt 0:00:14]} 27. Rxb4 {[%emt 0:00:02]} Bxb4 {[%emt 0:
00:01]} 28. Rc2 {[%emt 0:00:01]} Rxc2 {[%emt 0:00:02]} 29. Qxc2 Bxa5 {[%emt 0:
00:01]} 30. Qc8+ {[%emt 0:00:03]} Rd8 {[%emt 0:00:02]} 31. Qxa6 {[%emt 0:00:01]
} Bb4 {[%emt 0:00:06]} 32. Qxb5 {[%emt 0:00:01]} Bf8 {[%emt 0:00:01]} 33. h3 {
[%emt 0:00:02]} h6 {[%emt 0:00:01]} 34. Be5 {[%emt 0:00:03]} Nd7 {[%emt 0:00:
01]} 35. Bc7 {[%emt 0:00:01]} 1-0

[Event "GER-ch Blitz 2019"]
[Site "Magdeburg"]
[Date "2019.05.25"]
[Round "22.12"]
[White "Schulze, Marc"]
[Black "Buhmann, Rainer"]
[Result "0-1"]
[ECO "D02"]
[WhiteElo "2220"]
[BlackElo "2573"]
[Annotator "ChessBase"]
[PlyCount "44"]
[EventDate "2019.05.25"]
[EventType "tourn"]
[EventCountry "GER"]
[Tiebreak "Number of wins+Number of black wins"]
[SourceTitle "playchess.com"]
[Source "ChessBase"]
[SourceQuality "1"]
[TimeControl "180+2"]

1. d4 {[%emt 0:00:00]} Nf6 {[%emt 0:00:00]} 2. Bf4 {[%emt 0:00:01]} d5 {
[%emt 0:00:03]} 3. Nf3 {[%emt 0:00:01]} e6 {[%emt 0:00:01]} 4. e3 {[%emt 0:00:
01]} c5 {[%emt 0:00:01]} 5. c3 {[%emt 0:00:01]} Nc6 {[%emt 0:00:03]} 6. Nbd2 {
[%emt 0:00:03]} cxd4 {[%emt 0:00:01]} 7. exd4 {[%emt 0:00:01]} Nh5 {[%emt 0:00:
02]} 8. Bg5 {[%emt 0:00:04]} f6 {[%emt 0:00:04]} 9. Be3 {[%emt 0:00:01]} g6 {
[%emt 0:00:05]} 10. Bb5 {[%emt 0:00:10]} Bd6 {[%emt 0:00:05]} 11. O-O {[%emt 0:
00:07]} O-O {[%emt 0:00:02]} 12. c4 {[%emt 0:00:01]} Ne7 {[%emt 0:00:07]} 13.
cxd5 {[%emt 0:00:15]} exd5 {[%emt 0:00:11]} 14. Nb1 {[%emt 0:00:08]} a6 {
[%emt 0:00:08]} 15. Bd3 {[%emt 0:00:05]} Be6 {[%emt 0:00:17]} 16. Nc3 {[%emt 0:
00:03]} Bf7 {[%emt 0:00:06]} 17. Qd2 {[%emt 0:00:07]} Re8 {[%emt 0:00:05]} 18.
Rac1 {[%emt 0:00:01]} Qd7 {[%emt 0:00:03]} 19. Rc2 {[%emt 0:00:14]} Nf5 {
[%emt 0:00:11]} 20. Bxf5 {[%emt 0:00:22]} Qxf5 {[%emt 0:00:02]} 21. Na4 {
[%emt 0:00:07]} Nf4 {[%emt 0:00:30]} 22. Nc5 {[%emt 0:00:13]} Nxg2 {[%emt 0:00:
12]} 0-1